[Event "Titled Tuesday Blitz March 28 Late 2023"]
[White "Karamsetty, Jeevan"]
[Black "Goltsev, Dmitry"]
[WhiteFideId "2025337"]
[BlackFideId "24176710"]
[WhiteElo "2111"]
[BlackElo "2336"]
[Result "0-1"]
[Round "08"]
[TimeControl "180+2"]
[Date "2023.03.28"]
[WhiteClock "0:00:05"]
[BlackClock "0:00:32"]

1. e4 {[%clk 0:03:00]}  e6 {[%clk 0:03:00]} 2. d4 {[%clk 0:03:00]}  d5 {[%clk 0:03:00]} 3. exd5 {[%clk 0:03:01]}  exd5 {[%clk 0:03:01]} 4. Bd3 {[%clk 0:03:01]}  Nf6 {[%clk 0:03:02]} 5. Nf3 {[%clk 0:03:01]}  c5 {[%clk 0:03:02]} 6. dxc5 {[%clk 0:02:51]}  Bxc5 {[%clk 0:03:02]} 7. O-O {[%clk 0:02:51]}  O-O {[%clk 0:03:02]} 8. Bg5 {[%clk 0:02:46]}  Bg4 {[%clk 0:03:02]} 9. Nc3 {[%clk 0:02:41]}  Nc6 {[%clk 0:03:00]} 10. Bxf6 {[%clk 0:02:32]}  Qxf6 {[%clk 0:03:00]} 11. Nxd5 {[%clk 0:02:32]}  Qxb2 {[%clk 0:03:00]} 12. Bxh7+ {[%clk 0:02:28]}  Kh8 {[%clk 0:02:47]} 13. Bd3 {[%clk 0:02:08]}  Rad8 {[%clk 0:02:45]} 14. c4 {[%clk 0:02:02]}  Ne5 {[%clk 0:02:40]} 15. Be2 {[%clk 0:01:56]}  Ng6 {[%clk 0:02:31]} 16. h3 {[%clk 0:01:47]}  Bf5 {[%clk 0:02:17]} 17. Ng5 {[%clk 0:01:27]}  f6 {[%clk 0:02:08]} 18. Bd3 {[%clk 0:01:26]}  fxg5 {[%clk 0:01:55]} 19. Qh5+ {[%clk 0:01:20]}  Kg8 {[%clk 0:01:54]} 20. Bxf5 {[%clk 0:01:17]}  Rxf5 {[%clk 0:01:54]} 21. Qxg6 {[%clk 0:01:18]}  Rxf2 {[%clk 0:01:50]} 22. Kh1 {[%clk 0:01:15]}  Rdf8 {[%clk 0:01:30]} 23. Rg1 {[%clk 0:00:53]}  Qe5 {[%clk 0:01:27]} 24. Rae1 {[%clk 0:00:37]}  Qf5 {[%clk 0:01:11]} 25. Ne7+ {[%clk 0:00:23]}  Bxe7 {[%clk 0:01:08]} 26. Qxf5 {[%clk 0:00:23]}  R8xf5 {[%clk 0:01:07]} 27. Rxe7 {[%clk 0:00:24]}  Rxa2 {[%clk 0:01:03]} 28. Rxb7 {[%clk 0:00:23]}  Rff2 {[%clk 0:01:02]} 29. Kh2 {[%clk 0:00:20]}  Rfc2 {[%clk 0:01:01]} 30. Rc7 {[%clk 0:00:15]}  a5 {[%clk 0:01:00]} 31. Kg3 {[%clk 0:00:15]}  a4 {[%clk 0:00:59]} 32. Rc5 {[%clk 0:00:12]}  a3 {[%clk 0:00:57]} 33. Rxg5 {[%clk 0:00:10]}  Rab2 {[%clk 0:00:56]} 34. Ra5 {[%clk 0:00:09]}  a2 {[%clk 0:00:56]} 35. Ra1 {[%clk 0:00:08]}  Rxg2+ {[%clk 0:00:55]} 36. Kf4 {[%clk 0:00:05]}  Rge2 {[%clk 0:00:47]} 37. Ra7 {[%clk 0:00:04]}  Rbc2 {[%clk 0:00:45]} 38. Kf3 {[%clk 0:00:04]}  Rh2 {[%clk 0:00:44]} 39. Ke4 {[%clk 0:00:04]}  Rxc4+ {[%clk 0:00:44]} 40. Kd5 {[%clk 0:00:04]}  Rcc2 {[%clk 0:00:44]} 41. Rg1 {[%clk 0:00:04]}  Kh8 {[%clk 0:00:35]} 42. Rgxg7 {[%clk 0:00:04]}  a1=Q {[%clk 0:00:31]} 43. Rh7+ {[%clk 0:00:05]}  Kg8 {[%clk 0:00:31]} 44. Rxa1 {[%clk 0:00:05]}  Kxh7 {[%clk 0:00:32]} 45. Ra7+ {[%clk 0:00:05]}  Kg6 {[%clk 0:00:32]} 0-1


[Site "https://www.chess.com"]

[Event "Titled Tuesday Blitz March 28 Late 2023"]
[White "Olsson, William"]
[Black "Domingo Nunez, Alejandro"]
[WhiteFideId "1741721"]
[BlackFideId "22245561"]
[WhiteElo "2197"]
[BlackElo "2230"]
[Result "0-1"]
[Round "08"]
[TimeControl "180+2"]
[Date "2023.03.28"]
[WhiteClock "0:00:06"]
[BlackClock "0:00:05"]

1. c4 {[%clk 0:02:57]}  g6 {[%clk 0:02:58]} 2. g3 {[%clk 0:02:57]}  Bg7 {[%clk 0:02:58]} 3. Bg2 {[%clk 0:02:58]}  c5 {[%clk 0:02:58]} 4. Nc3 {[%clk 0:02:59]}  Nc6 {[%clk 0:02:57]} 5. a3 {[%clk 0:02:59]}  d6 {[%clk 0:02:33]} 6. Rb1 {[%clk 0:02:54]}  e6 {[%clk 0:02:30]} 7. b4 {[%clk 0:02:52]}  Nge7 {[%clk 0:02:31]} 8. Nf3 {[%clk 0:02:48]}  O-O {[%clk 0:02:30]} 9. O-O {[%clk 0:02:48]}  b6 {[%clk 0:02:25]} 10. b5 {[%clk 0:02:45]}  Na5 {[%clk 0:02:25]} 11. Qa4 {[%clk 0:02:36]}  Bb7 {[%clk 0:02:25]} 12. Bb2 {[%clk 0:02:35]}  d5 {[%clk 0:02:21]} 13. d3 {[%clk 0:02:34]}  d4 {[%clk 0:02:18]} 14. Ne4 {[%clk 0:02:28]}  f5 {[%clk 0:02:09]} 15. Ned2 {[%clk 0:02:23]}  e5 {[%clk 0:02:02]} 16. Qc2 {[%clk 0:02:23]}  h6 {[%clk 0:01:55]} 17. Rbd1 {[%clk 0:02:22]}  Qd7 {[%clk 0:01:50]} 18. e3 {[%clk 0:02:17]}  g5 {[%clk 0:01:47]} 19. exd4 {[%clk 0:02:01]}  exd4 {[%clk 0:01:38]} 20. Rfe1 {[%clk 0:01:55]}  Ng6 {[%clk 0:01:39]} 21. Bc1 {[%clk 0:01:51]}  g4 {[%clk 0:01:36]} 22. Nh4 {[%clk 0:01:50]}  Nxh4 {[%clk 0:01:36]} 23. gxh4 {[%clk 0:01:50]}  Qd8 {[%clk 0:01:16]} 24. f3 {[%clk 0:01:48]}  Qxh4 {[%clk 0:01:14]} 25. Rf1 {[%clk 0:01:30]}  Rae8 {[%clk 0:01:13]} 26. Rf2 {[%clk 0:01:29]}  Be5 {[%clk 0:01:00]} 27. Nf1 {[%clk 0:01:28]}  Kh7 {[%clk 0:00:56]} 28. f4 {[%clk 0:01:12]}  Bg7 {[%clk 0:00:49]} 29. Ng3 {[%clk 0:01:12]}  Bxg2 {[%clk 0:00:47]} 30. Rxg2 {[%clk 0:01:10]}  Nb7 {[%clk 0:00:47]} 31. Re2 {[%clk 0:01:09]}  Nd6 {[%clk 0:00:45]} 32. Rde1 {[%clk 0:01:09]}  Qd8 {[%clk 0:00:30]} 33. Re6 {[%clk 0:00:35]}  Rxe6 {[%clk 0:00:25]} 34. Rxe6 {[%clk 0:00:34]}  Re8 {[%clk 0:00:26]} 35. Qe2 {[%clk 0:00:34]}  Rxe6 {[%clk 0:00:25]} 36. Qxe6 {[%clk 0:00:35]}  Qf6 {[%clk 0:00:25]} 37. Qd5 {[%clk 0:00:27]}  Kg6 {[%clk 0:00:24]} 38. Bd2 {[%clk 0:00:26]}  h5 {[%clk 0:00:25]} 39. a4 {[%clk 0:00:13]}  h4 {[%clk 0:00:22]} 40. Nf1 {[%clk 0:00:12]}  Qe7 {[%clk 0:00:20]} 41. Qg2 {[%clk 0:00:11]}  Kh5 {[%clk 0:00:19]} 42. h3 {[%clk 0:00:10]}  Bh6 {[%clk 0:00:16]} 43. Nh2 {[%clk 0:00:09]}  Qe6 {[%clk 0:00:13]} 44. a5 {[%clk 0:00:05]}  Qg6 {[%clk 0:00:10]} 45. hxg4+ {[%clk 0:00:04]}  fxg4 {[%clk 0:00:11]} 46. axb6 {[%clk 0:00:05]}  axb6 {[%clk 0:00:10]} 47. Qd5+ {[%clk 0:00:05]}  Nf5 {[%clk 0:00:10]} 48. Kg2 {[%clk 0:00:03]}  h3+ {[%clk 0:00:07]} 49. Kg1 {[%clk 0:00:03]}  g3 {[%clk 0:00:07]} 50. Qf3+ {[%clk 0:00:02]}  Kh4 {[%clk 0:00:07]} 51. Be1 {[%clk 0:00:02]}  Qh5 {[%clk 0:00:03]} 52. Bxg3+ {[%clk 0:00:01]}  Nxg3 {[%clk 0:00:03]} 53. Qf2 {[%clk 0:00:02]}  Qd1+ {[%clk 0:00:03]} 54. Nf1 {[%clk 0:00:02]}  Qxf1+ {[%clk 0:00:03]} 55. Qxf1 {[%clk 0:00:03]}  Nxf1 {[%clk 0:00:04]} 56. Kxf1 {[%clk 0:00:04]}  Bxf4 {[%clk 0:00:04]} 57. Kg1 {[%clk 0:00:05]}  Kg4 {[%clk 0:00:04]} 58. Kh1 {[%clk 0:00:06]}  Kf3 {[%clk 0:00:05]} 0-1


[Site "https://www.chess.com"]

[Event "Titled Tuesday Blitz March 28 Late 2023"]
[White "Cuenca Jimenez, Jose Fernando"]
[Black "Miszler, Levente"]
[WhiteFideId "2255570"]
[BlackFideId "763276"]
[WhiteElo "2429"]
[BlackElo "2176"]
[Result "1-0"]
[Round "08"]
[TimeControl "180+2"]
[Date "2023.03.28"]
[WhiteClock "0:00:07"]
[BlackClock "0:00:06"]

1. c4 {[%clk 0:03:00]}  e5 {[%clk 0:02:57]} 2. Nc3 {[%clk 0:02:59]}  Nc6 {[%clk 0:02:56]} 3. Nf3 {[%clk 0:02:59]}  g6 {[%clk 0:02:54]} 4. d4 {[%clk 0:02:59]}  exd4 {[%clk 0:02:52]} 5. Nxd4 {[%clk 0:03:00]}  Bg7 {[%clk 0:02:52]} 6. Nxc6 {[%clk 0:03:01]}  bxc6 {[%clk 0:02:51]} 7. e4 {[%clk 0:03:01]}  Ne7 {[%clk 0:02:44]} 8. Be3 {[%clk 0:03:01]}  O-O {[%clk 0:02:44]} 9. Bd4 {[%clk 0:03:01]}  d6 {[%clk 0:02:37]} 10. Bxg7 {[%clk 0:03:00]}  Kxg7 {[%clk 0:02:38]} 11. Qd4+ {[%clk 0:03:01]}  f6 {[%clk 0:02:36]} 12. c5 {[%clk 0:03:01]}  dxc5 {[%clk 0:02:20]} 13. Qxc5 {[%clk 0:03:01]}  Qd6 {[%clk 0:02:20]} 14. Qe3 {[%clk 0:02:49]}  Be6 {[%clk 0:02:14]} 15. Be2 {[%clk 0:02:43]}  Qb4 {[%clk 0:02:04]} 16. b3 {[%clk 0:02:10]}  Rfd8 {[%clk 0:01:54]} 17. O-O {[%clk 0:02:07]}  Rd7 {[%clk 0:01:50]} 18. Na4 {[%clk 0:01:45]}  Qd2 {[%clk 0:01:46]} 19. Qf3 {[%clk 0:00:59]}  Qg5 {[%clk 0:01:22]} 20. Rac1 {[%clk 0:00:46]}  Rd2 {[%clk 0:01:18]} 21. Nc5 {[%clk 0:00:39]}  Bf7 {[%clk 0:01:17]} 22. a4 {[%clk 0:00:39]}  Rad8 {[%clk 0:01:10]} 23. g3 {[%clk 0:00:38]}  Qe5 {[%clk 0:00:54]} 24. Rfe1 {[%clk 0:00:33]}  Qb2 {[%clk 0:00:53]} 25. Qe3 {[%clk 0:00:28]}  Rc2 {[%clk 0:00:41]} 26. Rxc2 {[%clk 0:00:24]}  Qxc2 {[%clk 0:00:42]} 27. Rc1 {[%clk 0:00:24]}  Qb2 {[%clk 0:00:41]} 28. Bf1 {[%clk 0:00:21]}  Rd2 {[%clk 0:00:39]} 29. Nd3 {[%clk 0:00:18]}  Qa2 {[%clk 0:00:32]} 30. Nb4 {[%clk 0:00:16]}  Qb2 {[%clk 0:00:32]} 31. Nd3 {[%clk 0:00:13]}  Qa2 {[%clk 0:00:32]} 32. Re1 {[%clk 0:00:11]}  Bxb3 {[%clk 0:00:30]} 33. e5 {[%clk 0:00:11]}  f5 {[%clk 0:00:28]} 34. e6 {[%clk 0:00:11]}  Bc4 {[%clk 0:00:16]} 35. Qe5+ {[%clk 0:00:09]}  Kg8 {[%clk 0:00:17]} 36. Qf6 {[%clk 0:00:08]}  Bxd3 {[%clk 0:00:11]} 37. Qf7+ {[%clk 0:00:08]}  Kh8 {[%clk 0:00:11]} 38. Qxe7 {[%clk 0:00:09]}  Qa3 {[%clk 0:00:06]} 39. Qxa3 {[%clk 0:00:07]} 1-0


[Site "https://www.chess.com"]

[Event "Titled Tuesday Blitz March 28 Late 2023"]
[White "Goroshkov, Maksym"]
[Black "Yeritsyan, Hayk"]
[WhiteFideId "14142716"]
[BlackFideId "13307320"]
[WhiteElo "2322"]
[BlackElo "2452"]
[Result "1-0"]
[Round "08"]
[TimeControl "180+2"]
[Date "2023.03.28"]
[WhiteClock "0:01:06"]
[BlackClock "0:00:13"]

1. e4 {[%clk 0:02:59]}  c6 {[%clk 0:02:56]} 2. c4 {[%clk 0:02:59]}  d6 {[%clk 0:02:54]} 3. Nc3 {[%clk 0:02:59]}  e5 {[%clk 0:02:53]} 4. Nf3 {[%clk 0:02:56]}  Bg4 {[%clk 0:02:50]} 5. Be2 {[%clk 0:02:54]}  Nd7 {[%clk 0:02:49]} 6. d4 {[%clk 0:02:54]}  Ngf6 {[%clk 0:02:48]} 7. O-O {[%clk 0:02:50]}  Be7 {[%clk 0:02:48]} 8. dxe5 {[%clk 0:02:49]}  dxe5 {[%clk 0:02:18]} 9. Be3 {[%clk 0:02:48]}  Qc7 {[%clk 0:02:11]} 10. Qc2 {[%clk 0:02:42]}  O-O {[%clk 0:02:08]} 11. Rad1 {[%clk 0:02:40]}  Bc5 {[%clk 0:02:06]} 12. Bg5 {[%clk 0:02:37]}  Bxf3 {[%clk 0:01:59]} 13. Bxf3 {[%clk 0:02:36]}  Bd4 {[%clk 0:02:00]} 14. Ne2 {[%clk 0:02:32]}  c5 {[%clk 0:01:53]} 15. Ng3 {[%clk 0:02:32]}  h6 {[%clk 0:01:46]} 16. Be3 {[%clk 0:02:30]}  Rfd8 {[%clk 0:01:34]} 17. Nf5 {[%clk 0:02:29]}  Nf8 {[%clk 0:01:35]} 18. Qc1 {[%clk 0:02:17]}  Bxe3 {[%clk 0:01:32]} 19. fxe3 {[%clk 0:01:56]}  Rxd1 {[%clk 0:01:25]} 20. Rxd1 {[%clk 0:01:56]}  Rd8 {[%clk 0:01:24]} 21. Rd2 {[%clk 0:01:47]}  Ne6 {[%clk 0:00:52]} 22. h4 {[%clk 0:01:37]}  Kf8 {[%clk 0:00:44]} 23. Ng3 {[%clk 0:01:25]}  Rxd2 {[%clk 0:00:41]} 24. Qxd2 {[%clk 0:01:26]}  Qd8 {[%clk 0:00:36]} 25. Qc3 {[%clk 0:01:24]}  Nd7 {[%clk 0:00:32]} 26. h5 {[%clk 0:01:07]}  Qh4 {[%clk 0:00:18]} 27. Nf5 {[%clk 0:01:06]}  g6 {[%clk 0:00:13]} 28. Nxh4 {[%clk 0:01:06]} 1-0


[Site "https://www.chess.com"]

[Event "Titled Tuesday Blitz March 28 Late 2023"]
[White "Bochnicka, Vladimir"]
[Black "Kavutskiy, Konstantin"]
[WhiteFideId "14943450"]
[BlackFideId "2026384"]
[WhiteElo "2094"]
[BlackElo "2369"]
[Result "1-0"]
[Round "08"]
[TimeControl "180+2"]
[Date "2023.03.28"]
[WhiteClock "0:00:22"]
[BlackClock "0:00:35"]

1. e4 {[%clk 0:03:00]}  c5 {[%clk 0:02:56]} 2. Nf3 {[%clk 0:02:59]}  Nc6 {[%clk 0:02:56]} 3. d4 {[%clk 0:02:54]}  cxd4 {[%clk 0:02:56]} 4. Nxd4 {[%clk 0:02:55]}  Nf6 {[%clk 0:02:55]} 5. Nc3 {[%clk 0:02:54]}  e5 {[%clk 0:02:56]} 6. Ndb5 {[%clk 0:02:54]}  d6 {[%clk 0:02:57]} 7. Bg5 {[%clk 0:02:54]}  a6 {[%clk 0:02:57]} 8. Na3 {[%clk 0:02:54]}  b5 {[%clk 0:02:57]} 9. Nd5 {[%clk 0:02:55]}  Be7 {[%clk 0:02:57]} 10. Bxf6 {[%clk 0:02:56]}  Bxf6 {[%clk 0:02:57]} 11. c3 {[%clk 0:02:56]}  Rb8 {[%clk 0:02:56]} 12. Nc2 {[%clk 0:02:55]}  Bg5 {[%clk 0:02:56]} 13. a4 {[%clk 0:02:51]}  bxa4 {[%clk 0:02:56]} 14. Ncb4 {[%clk 0:02:51]}  Nxb4 {[%clk 0:02:55]} 15. cxb4 {[%clk 0:02:47]}  O-O {[%clk 0:02:53]} 16. Rxa4 {[%clk 0:02:38]}  a5 {[%clk 0:02:53]} 17. Be2 {[%clk 0:02:13]}  axb4 {[%clk 0:02:32]} 18. O-O {[%clk 0:02:11]}  b3 {[%clk 0:02:27]} 19. Bc4 {[%clk 0:02:03]}  Be6 {[%clk 0:02:21]} 20. Ra6 {[%clk 0:01:55]}  Ra8 {[%clk 0:02:10]} 21. Rxa8 {[%clk 0:01:47]}  Qxa8 {[%clk 0:02:11]} 22. Nc7 {[%clk 0:01:48]}  Qc6 {[%clk 0:01:51]} 23. Nxe6 {[%clk 0:01:42]}  fxe6 {[%clk 0:01:51]} 24. Bxe6+ {[%clk 0:01:42]}  Kh8 {[%clk 0:01:51]} 25. Bd5 {[%clk 0:01:42]}  Qb6 {[%clk 0:01:49]} 26. Bxb3 {[%clk 0:01:05]}  Rb8 {[%clk 0:01:46]} 27. Be6 {[%clk 0:01:00]}  Qxb2 {[%clk 0:01:40]} 28. Qxd6 {[%clk 0:00:53]}  Rd8 {[%clk 0:01:36]} 29. Qc7 {[%clk 0:00:44]}  Bf6 {[%clk 0:01:12]} 30. g3 {[%clk 0:00:44]}  Qe2 {[%clk 0:01:09]} 31. Bd5 {[%clk 0:00:33]}  h6 {[%clk 0:01:03]} 32. Rb1 {[%clk 0:00:31]}  Kh7 {[%clk 0:01:00]} 33. Rb8 {[%clk 0:00:28]}  Rxb8 {[%clk 0:00:45]} 34. Qxb8 {[%clk 0:00:29]}  Kg6 {[%clk 0:00:45]} 35. Qe8+ {[%clk 0:00:23]}  Kg5 {[%clk 0:00:45]} 36. h4+ {[%clk 0:00:21]}  Kg4 {[%clk 0:00:44]} 37. Be6+ {[%clk 0:00:22]}  Kf3 {[%clk 0:00:35]} 38. Qh5+ {[%clk 0:00:22]} 1-0


[Site "https://www.chess.com"]

[Event "Titled Tuesday Blitz March 28 Late 2023"]
[White "Srinath, Rao S.V."]
[Black "Dmitrenko, Viktor"]
[WhiteFideId "5028876"]
[BlackFideId "14110270"]
[WhiteElo "2196"]
[BlackElo "2292"]
[Result "1-0"]
[Round "08"]
[TimeControl "180+2"]
[Date "2023.03.28"]
[WhiteClock "0:00:43"]
[BlackClock "0:00:59"]

1. d4 {[%clk 0:03:00]}  e6 {[%clk 0:02:53]} 2. Nc3 {[%clk 0:03:00]}  d5 {[%clk 0:02:53]} 3. Bf4 {[%clk 0:03:00]}  Nf6 {[%clk 0:02:50]} 4. e3 {[%clk 0:02:54]}  Bb4 {[%clk 0:02:48]} 5. Ne2 {[%clk 0:02:51]}  O-O {[%clk 0:02:37]} 6. h4 {[%clk 0:02:45]}  c5 {[%clk 0:02:34]} 7. h5 {[%clk 0:02:43]}  cxd4 {[%clk 0:02:29]} 8. exd4 {[%clk 0:02:44]}  Ne4 {[%clk 0:02:22]} 9. Qd3 {[%clk 0:02:35]}  b6 {[%clk 0:02:09]} 10. h6 {[%clk 0:02:30]}  g6 {[%clk 0:02:05]} 11. O-O-O {[%clk 0:02:16]}  Ba6 {[%clk 0:02:02]} 12. Qe3 {[%clk 0:02:11]}  Bxe2 {[%clk 0:01:55]} 13. Nxe2 {[%clk 0:01:38]}  Nc6 {[%clk 0:01:46]} 14. f3 {[%clk 0:01:38]}  Nd6 {[%clk 0:01:44]} 15. Bg5 {[%clk 0:01:37]}  Qd7 {[%clk 0:01:40]} 16. Bf6 {[%clk 0:01:33]}  Nc4 {[%clk 0:01:38]} 17. Qg5 {[%clk 0:01:30]}  Be7 {[%clk 0:01:34]} 18. Nf4 {[%clk 0:01:27]}  N6a5 {[%clk 0:01:31]} 19. Bxe7 {[%clk 0:01:21]}  f6 {[%clk 0:01:21]} 20. Bxf6 {[%clk 0:01:16]}  Qf7 {[%clk 0:01:19]} 21. Nh5 {[%clk 0:00:59]}  Rac8 {[%clk 0:01:11]} 22. Bxc4 {[%clk 0:00:55]}  Nxc4 {[%clk 0:01:11]} 23. Bg7 {[%clk 0:00:54]}  Qf5 {[%clk 0:01:04]} 24. Qxf5 {[%clk 0:00:43]}  Rxf5 {[%clk 0:01:02]} 25. Nf6+ {[%clk 0:00:43]}  Kf7 {[%clk 0:01:02]} 26. Nxh7 {[%clk 0:00:44]}  Ne3 {[%clk 0:01:00]} 27. Rd2 {[%clk 0:00:44]}  Nc4 {[%clk 0:00:59]} 28. Re2 {[%clk 0:00:43]} 1-0


[Site "https://www.chess.com"]

[Event "Titled Tuesday Blitz March 28 Late 2023"]
[White "Grebeniuk, Semen"]
[Black "Onslow, Alfie"]
[WhiteFideId "14117509"]
[BlackFideId "436976"]
[WhiteElo "2266"]
[BlackElo "2114"]
[Result "1-0"]
[Round "08"]
[TimeControl "180+2"]
[Date "2023.03.28"]
[WhiteClock "0:00:07"]
[BlackClock "0:00:01"]

1. d4 {[%clk 0:03:00]}  Nf6 {[%clk 0:02:57]} 2. Nf3 {[%clk 0:03:00]}  c5 {[%clk 0:02:58]} 3. e3 {[%clk 0:03:00]}  cxd4 {[%clk 0:02:57]} 4. exd4 {[%clk 0:03:00]}  d5 {[%clk 0:02:57]} 5. Bd3 {[%clk 0:02:56]}  Nc6 {[%clk 0:02:55]} 6. h3 {[%clk 0:02:51]}  g6 {[%clk 0:02:54]} 7. c3 {[%clk 0:02:51]}  Bg7 {[%clk 0:02:54]} 8. O-O {[%clk 0:02:52]}  O-O {[%clk 0:02:55]} 9. Re1 {[%clk 0:02:51]}  Bf5 {[%clk 0:02:55]} 10. Bf1 {[%clk 0:02:52]}  a6 {[%clk 0:02:51]} 11. a4 {[%clk 0:02:52]}  Qc7 {[%clk 0:02:49]} 12. Nbd2 {[%clk 0:02:50]}  Ne4 {[%clk 0:02:48]} 13. Nb3 {[%clk 0:02:38]}  b6 {[%clk 0:02:33]} 14. Be3 {[%clk 0:02:35]}  Nd6 {[%clk 0:02:32]} 15. Bf4 {[%clk 0:02:34]}  Qd7 {[%clk 0:02:30]} 16. Ne5 {[%clk 0:02:24]}  Nxe5 {[%clk 0:02:29]} 17. dxe5 {[%clk 0:02:17]}  Nc4 {[%clk 0:02:29]} 18. Bxc4 {[%clk 0:02:10]}  dxc4 {[%clk 0:02:30]} 19. Nd4 {[%clk 0:02:09]}  Rfd8 {[%clk 0:02:20]} 20. Qf3 {[%clk 0:02:03]}  Be6 {[%clk 0:02:18]} 21. Qc6 {[%clk 0:01:50]}  Qxc6 {[%clk 0:01:55]} 22. Nxc6 {[%clk 0:01:50]}  Rd7 {[%clk 0:01:55]} 23. Red1 {[%clk 0:01:45]}  Rc7 {[%clk 0:01:56]} 24. Nd4 {[%clk 0:01:43]}  Bd5 {[%clk 0:01:56]} 25. f3 {[%clk 0:01:40]}  e6 {[%clk 0:01:55]} 26. Kf2 {[%clk 0:01:40]}  h6 {[%clk 0:01:49]} 27. h4 {[%clk 0:01:40]}  Rc5 {[%clk 0:01:43]} 28. Nc2 {[%clk 0:01:29]}  a5 {[%clk 0:01:07]} 29. Be3 {[%clk 0:01:23]}  Rc6 {[%clk 0:01:02]} 30. Nd4 {[%clk 0:01:17]}  Rcc8 {[%clk 0:00:58]} 31. f4 {[%clk 0:01:17]}  Bf8 {[%clk 0:00:48]} 32. Nb5 {[%clk 0:01:15]}  Rab8 {[%clk 0:00:45]} 33. g4 {[%clk 0:01:13]}  Be7 {[%clk 0:00:36]} 34. Kg3 {[%clk 0:01:12]}  Rd8 {[%clk 0:00:28]} 35. Rd2 {[%clk 0:00:59]}  Be4 {[%clk 0:00:19]} 36. Nd6 {[%clk 0:00:49]}  Bxd6 {[%clk 0:00:17]} 37. exd6 {[%clk 0:00:50]}  Bd5 {[%clk 0:00:17]} 38. Bd4 {[%clk 0:00:49]}  Rb7 {[%clk 0:00:15]} 39. Be5 {[%clk 0:00:49]}  f6 {[%clk 0:00:11]} 40. Bxf6 {[%clk 0:00:48]}  Rxd6 {[%clk 0:00:11]} 41. h5 {[%clk 0:00:40]}  gxh5 {[%clk 0:00:09]} 42. gxh5 {[%clk 0:00:41]}  Rf7 {[%clk 0:00:08]} 43. Be5 {[%clk 0:00:40]}  Rdd7 {[%clk 0:00:07]} 44. Kh4 {[%clk 0:00:38]}  Kh7 {[%clk 0:00:05]} 45. Rg1 {[%clk 0:00:39]}  Rf5 {[%clk 0:00:05]} 46. Rg3 {[%clk 0:00:31]}  Rdf7 {[%clk 0:00:05]} 47. Rg6 {[%clk 0:00:08]}  Rf8 {[%clk 0:00:04]} 48. Rg3 {[%clk 0:00:05]}  Rg8 {[%clk 0:00:04]} 49. Rxg8 {[%clk 0:00:04]}  Kxg8 {[%clk 0:00:05]} 50. Rd1 {[%clk 0:00:05]}  Kf7 {[%clk 0:00:03]} 51. Rg1 {[%clk 0:00:06]}  Ke8 {[%clk 0:00:03]} 52. Rg7 {[%clk 0:00:06]}  Rf7 {[%clk 0:00:02]} 53. Rg6 {[%clk 0:00:07]}  Rd7 {[%clk 0:00:01]} 54. Rxh6 {[%clk 0:00:07]} 1-0


[Site "https://www.chess.com"]

[Event "Titled Tuesday Blitz March 28 Late 2023"]
[White "Janaszak, Dawid"]
[Black "Bogaudinov, Rushan"]
[WhiteFideId "1119206"]
[BlackFideId "4129288"]
[WhiteElo "2220"]
[BlackElo "1949"]
[Result "1-0"]
[Round "08"]
[TimeControl "180+2"]
[Date "2023.03.28"]
[WhiteClock "0:00:28"]
[BlackClock "0:00:32"]

1. e4 {[%clk 0:03:00]}  c5 {[%clk 0:02:59]} 2. Nc3 {[%clk 0:03:00]}  Nc6 {[%clk 0:02:58]} 3. Bb5 {[%clk 0:03:00]}  Qc7 {[%clk 0:02:55]} 4. Nf3 {[%clk 0:02:53]}  a6 {[%clk 0:02:52]} 5. Bxc6 {[%clk 0:02:52]}  Qxc6 {[%clk 0:02:52]} 6. d4 {[%clk 0:02:52]}  cxd4 {[%clk 0:02:38]} 7. Nxd4 {[%clk 0:02:53]}  Qc7 {[%clk 0:02:37]} 8. Nd5 {[%clk 0:02:49]}  Qd8 {[%clk 0:02:37]} 9. Be3 {[%clk 0:02:45]}  e6 {[%clk 0:02:33]} 10. Nc3 {[%clk 0:02:06]}  Bb4 {[%clk 0:02:27]} 11. O-O {[%clk 0:02:05]}  Ne7 {[%clk 0:02:19]} 12. e5 {[%clk 0:01:53]}  d6 {[%clk 0:02:13]} 13. exd6 {[%clk 0:01:50]}  Bxd6 {[%clk 0:02:12]} 14. Ne4 {[%clk 0:01:46]}  Bc7 {[%clk 0:02:04]} 15. Qh5 {[%clk 0:01:38]}  Qd5 {[%clk 0:01:48]} 16. Qf3 {[%clk 0:01:30]}  O-O {[%clk 0:01:44]} 17. c4 {[%clk 0:01:25]}  Qd7 {[%clk 0:01:25]} 18. Rad1 {[%clk 0:01:25]}  Ng6 {[%clk 0:01:23]} 19. Nf5 {[%clk 0:00:58]}  exf5 {[%clk 0:01:15]} 20. Rxd7 {[%clk 0:00:57]}  fxe4 {[%clk 0:01:14]} 21. Qd1 {[%clk 0:00:56]}  Bxd7 {[%clk 0:01:07]} 22. Qxd7 {[%clk 0:00:57]}  Rac8 {[%clk 0:01:04]} 23. Qd5 {[%clk 0:00:51]}  Be5 {[%clk 0:00:58]} 24. Qxb7 {[%clk 0:00:46]}  Rb8 {[%clk 0:00:54]} 25. Qxa6 {[%clk 0:00:42]}  Rxb2 {[%clk 0:00:52]} 26. c5 {[%clk 0:00:43]}  f5 {[%clk 0:00:49]} 27. c6 {[%clk 0:00:39]}  f4 {[%clk 0:00:45]} 28. Bc5 {[%clk 0:00:39]}  Rfb8 {[%clk 0:00:41]} 29. Ba7 {[%clk 0:00:31]}  Re8 {[%clk 0:00:35]} 30. c7 {[%clk 0:00:29]}  Rc2 {[%clk 0:00:32]} 31. Qa4 {[%clk 0:00:28]} 1-0


[Site "https://www.chess.com"]